bitfinex/quotes_ETHUSD_20250217
["timestamp","ask_amount","ask_price","bid_price","bid_amount"]
[1739805385407,0.02613864,2820.5,2819.7,1.08464588]
[1739805385943,0.55,2820.5,2819.7,0.7811]
[1739805386311,0.7761,2820.6,2819.7,0.7811]
[1739805386312,0.7761,2820.6,2819.8,0.18183562]
[1739805386537,0.7571,2821.2,2819.8,0.18183562]
[1739805386743,0.7571,2821.2,2819.8,3.18183562]
[1739805386943,0.02613864,2821.1,2819.8,0.18183562]
[1739805387239,0.7571,2821.2,2819.8,4.05293442]
[1739805387415,0.17797559,2821.1,2819.8,4.05293442]
[1739805387745,0.17797559,2821.1,2819.9,0.18176191]
[1739805387943,0.72797559,2821.1,2819.9,0.18176191]
[1739805388238,1.34113864,2821.0,2819.9,0.18176191]
[1739805388415,0.765,2821.0,2819.9,0.18176191]
[1739805388611,0.55,2820.7,2819.6,0.8031]
[1739805388833,0.832,2820.5,2819.7,0.18111608]
[1739805389146,0.832,2820.5,2819.7,0.21657692]
[1739805389330,0.832,2820.5,2819.8,4.87693442]
[1739805389531,0.17797559,2821.1,2819.8,5.05797679]
[1739805389718,0.01774,2819.9,2819.8,5.05797679]
[1739805392146,0.01774,2819.9,2819.8,8.05797679]
[1739805394052,0.01774,2819.9,2819.8,8.03197679]
[1739805394954,0.01774,2819.9,2819.8,8.91532906]
[1739805395544,0.01774,2819.9,2819.8,9.23232906]
[1739805395890,0.01774,2819.9,2819.8,9.05488754]
[1739805396257,0.01774,2819.9,2819.8,5.00195312]
[1739805397964,0.01774,2819.9,2819.8,1.68495312]
[1739805398840,0.01774,2819.9,2819.8,0.18104237]
[1739805399138,0.01774,2819.9,2819.6,4.05293442]
[1739805399350,0.01774,2819.9,2819.8,0.18069143]
[1739805399516,0.01774,2819.9,2819.3,4.05293442]
[1739805399517,0.01774,2819.9,2819.7,0.18076514]
[1739805399724,0.01774,2819.9,2819.3,4.05293442]
[1739805399924,0.01774,2819.9,2819.8,0.18069143]
[1739805400125,0.01774,2819.9,2819.7,0.03545875]
[1739805400339,0.01774,2819.9,2819.8,0.18080407]
[1739805400822,0.01774,2819.9,2819.8,0.80185828]
[1739805401053,0.01774,2819.9,2819.8,0.94720407]
[1739805401828,0.01774,2819.9,2819.8,0.21625332]
[1739805402037,0.01774,2819.9,2819.8,0.97665332]
[1739805402235,0.01774,2819.9,2819.8,1.68299018]
[1739805403133,0.01774,2819.9,2819.8,1.64754093]
[1739805403828,0.01774,2819.9,2819.8,1.68299562]
[1739805404030,0.01774,2819.9,2819.8,1.64754093]
[1739805406129,0.01774,2819.9,2819.8,1.46673686]
[1739805406468,0.01774,2819.9,2819.8,1.64748894]
[1739805407459,0.01774,2819.9,2819.8,5.70042336]
[1739805407665,0.01774,2819.9,2819.8,8.70042336]
[1739805408763,0.01774,2819.9,2819.8,4.64748894]
[1739805408975,0.01774,2819.9,2819.8,8.70042336]
[1739805411672,0.01774,2819.9,2819.8,4.64748894]
[1739805411972,0.01774,2819.9,2819.8,8.70042336]
[1739805413271,0.01774,2819.9,2819.8,7.94002336]
[1739805414060,0.01774,2819.9,2819.8,7.2336865]
[1739805414272,0.01774,2819.9,2819.8,3.18075208]
[1739805414464,0.01774,2819.9,2819.8,0.18075208]
[1739805414874,0.01774,2819.9,2819.3,3.0]
[1739805415083,0.01774,2819.9,2819.8,0.18076075]
[1739805415400,0.01774,2819.9,2819.6,0.03545974]
[1739805415698,0.01774,2819.9,2819.5,4.05293442]
[1739805415699,0.01774,2819.9,2819.7,0.18083446]
[1739805416195,0.01774,2819.9,2819.8,7.87133442]
[1739805416491,0.01774,2819.9,2819.8,8.05223815]
[1739805417294,0.01774,2819.9,2819.8,3.99930373]
[1739805422463,0.01774,2819.9,2819.8,4.03475151]
[1739805423100,0.8267,2821.0,2819.9,3.55]
[1739805423307,0.8033,2821.9,2820.8,4.05293442]
[1739805423473,0.8033,2821.9,2820.9,0.03544322]
[1739805423673,0.97703,2821.8,2820.9,0.21529384]
[1739805423897,0.97703,2821.8,2820.9,0.17985062]
[1739805424101,0.97703,2821.8,2821.0,0.03544069]
[1739805424522,0.7874,2821.7,2821.1,4.2325338]
[1739805425222,0.7874,2821.7,2821.1,0.17959938]
[1739805425566,0.7874,2821.7,2821.1,4.05293442]
[1739805425949,0.7874,2821.7,2821.2,0.17952574]
[1739805426813,0.7874,2821.7,2821.3,0.03543928]
[1739805427017,0.7874,2821.7,2821.2,3.17952574]
[1739805427018,1.7854,2822.0,2821.4,4.05293442]
[1739805427244,1.7854,2822.0,2821.4,4.23214402]
[1739805427519,1.7854,2822.0,2821.4,4.93307113]
[1739805427815,1.7854,2822.0,2821.4,0.1792096]
[1739805428601,1.0,2822.0,2821.6,4.05293442]
[1739805428809,1.0,2822.0,2821.9,4.05293442]
[1739805429308,1.0,2822.0,2821.9,7.23150324]
[1739805430985,1.0,2822.0,2821.9,8.03860324]
[1739805431565,1.0,2822.0,2821.9,8.74965505]
[1739805431895,0.1981056,2822.0,2821.9,8.74965505]
[1739805432907,0.0008,2823.0,2822.0,3.0]
[1739805433112,0.0008,2823.0,2822.8,4.05293442]
[1739805433277,0.0008,2823.0,2822.9,0.02700841]
[1739805433463,0.0008,2823.0,2822.9,0.20449105]
[1739805433860,0.0008,2823.0,2822.9,3.20449105]
[1739805434399,0.0008,2823.0,2822.9,3.17748264]
[1739805435467,0.0008,2823.0,2822.9,3.88867638]
[1739805435800,0.0008,2823.0,2822.9,0.88867638]
[1739805436709,0.0008,2823.0,2822.9,3.88867638]
[1739805439579,0.0008,2823.0,2822.9,0.88867638]
[1739805439782,0.0008,2823.0,2822.9,0.17748264]
[1739805440187,0.0008,2823.0,2822.6,3.0]
[1739805440440,0.0008,2823.0,2822.9,0.17005932]
[1739805441094,0.0008,2823.0,2822.9,0.2054771]
[1739805441421,0.0008,2823.0,2822.9,0.17005932]
[1739805442417,0.0008,2823.0,2822.9,0.20547479]
[1739805442624,0.0008,2823.0,2822.9,7.19572431]
[1739805442798,0.0008,2823.0,2822.9,7.16030884]
[1739805443439,0.0008,2823.0,2822.9,7.19572185]
[1739805443601,0.0008,2823.0,2822.9,7.51072185]
[1739805443803,0.0008,2823.0,2822.9,7.47530884]
[1739805444200,0.0008,2823.0,2822.9,8.02530884]
[1739805444641,0.0008,2823.0,2822.9,8.84248612]
[1739805448432,0.8084,2824.2,2822.9,8.84248612]
[1739805448597,0.8084,2824.2,2823.7,4.0502268]
[1739805448995,0.55,2824.4,2823.8,2.38545902]
[1739805449199,0.55,2824.4,2824.0,4.0502268]
[1739805449436,0.55,2824.4,2824.1,3.03540255]
[1739805449740,0.55,2824.4,2824.1,3.16889763]
[1739805450108,0.55,2824.4,2824.1,0.16889763]
[1739805450315,0.55,2824.4,2824.3,4.0502268]
[1739805450807,0.55,2824.4,2824.3,10.78665839]
[1739805451011,0.7884,2825.7,2825.6,3.53907]
[1739805451240,3.082,2826.9,2825.9,3.53864]
[1739805451441,7.958,2827.3,2826.8,3.53756]
[1739805451615,0.72425076,2827.1,2826.3,3.53819]
[1739805451937,0.315,2827.8,2827.0,3.53731]
[1739805452138,0.36502203,2827.9,2827.3,3.53685]
[1739805452451,0.36502203,2827.9,2827.5,3.53668]
[1739805452452,0.79512288,2827.9,2827.5,3.53668]
[1739805452596,0.02613864,2827.8,2827.3,3.53689]
[1739805452802,0.4509257,2827.9,2827.6,0.16507406]
[1739805453037,4.0502268,2828.3,2827.5,3.53659]
[1739805453217,0.45386885,2828.2,2827.7,0.16500076]
[1739805453413,0.02613864,2828.1,2827.6,0.16507406]
[1739805453603,0.44815601,2828.3,2827.4,3.53678]
[1739805453831,0.44815601,2828.3,2826.8,3.5375]
[1739805453832,3.53595,2828.1,2827.7,0.16500076]
[1739805454039,3.95771737,2828.3,2827.7,0.16500076]
[1739805454216,3.95771737,2828.3,2827.4,3.53671]
[1739805454217,3.5357,2828.3,2827.4,3.53671]
[1739805454399,0.8129,2828.1,2827.4,3.53671]
[1739805454741,0.8129,2828.1,2827.6,3.53655]
[1739805454897,0.8129,2828.1,2827.8,3.53628]
[1739805455239,0.8129,2828.1,2828.0,3.53606]
[1739805455399,0.8129,2828.1,2827.1,0.03535918]
[1739805455400,0.7821,2828.3,2827.9,0.16414195]
[1739805455594,3.53592,2828.2,2828.0,0.16403865]
[1739805455835,4.86804,2828.1,2828.0,0.16403865]
[1739805456008,4.86804,2828.1,2827.3,3.53683]
[1739805456009,1.677473,2828.1,2827.3,3.53683]
[1739805456199,0.7821,2828.1,2827.1,3.315]
[1739805456402,0.7821,2828.1,2827.2,0.03536013]
[1739805456602,0.7821,2828.1,2827.6,3.53645]
[1739805456999,0.7821,2828.1,2827.9,3.53609]
[1739805457254,0.005,2828.4,2828.0,3.53606]
[1739805457451,0.005,2828.4,2828.1,3.53592]
[1739805457602,0.005,2828.4,2828.0,0.16403865]
[1739805457949,4.86779,2828.3,2828.1,0.16396537]
[1739805458153,4.078089,2828.2,2828.1,0.16396537]
[1739805458356,3.53607,2828.0,2827.4,3.53671]
[1739805458582,0.55,2828.1,2827.2,4.23185909]
[1739805458583,3.53619,2827.9,2827.2,3.53706]
[1739805458844,4.08598,2828.1,2827.5,0.16440513]
[1739805459045,4.08598,2828.1,2827.4,3.53671]
[1739805459245,0.4628259,2828.0,2827.6,0.16433182]
[1739805459549,3.9989459,2828.0,2827.7,0.16425852]
[1739805459751,3.53624,2827.9,2827.7,0.16425852]
[1739805460048,0.4628259,2828.0,2827.6,3.53646]
[1739805460348,0.55,2828.1,2827.7,0.16425852]
[1739805460549,0.55,2827.8,2827.7,0.16425852]
[1739805460764,3.53653,2827.7,2827.0,3.53729]
[1739805460898,0.55,2827.6,2826.8,3.53752]
[1739805461105,0.55,2827.4,2826.8,2.98752]
[1739805461366,1.3572,2827.2,2826.9,0.16484507]
[1739805461646,4.89451,2827.0,2826.9,0.16484507]
[1739805461814,3.53822,2826.3,2825.6,3.53898]
[1739805462140,3.53794,2826.5,2825.7,0.15983541]
[1739805462141,0.55,2826.4,2825.7,0.15983541]
[1739805462343,3.5382,2826.3,2825.8,3.53881]
[1739805462641,3.5382,2826.3,2825.7,0.15983541]
[1739805462847,0.55,2826.7,2825.4,4.23776239]
[1739805462848,3.53857,2826.0,2825.9,0.15875226]
[1739805463053,3.53857,2826.0,2825.8,0.15882566]
[1739805463054,0.55,2825.9,2825.8,0.15882566]
[1739805463352,0.55,2825.9,2825.4,3.53924]
[1739805463504,0.55,2825.9,2825.2,3.53951]
[1739805463755,0.55,2825.9,2824.9,5.52470499]
[1739805463956,3.5392,2825.5,2824.9,3.53986]
[1739805464153,0.7902,2825.4,2824.6,0.71016981]
[1739805464392,4.32963,2825.4,2824.7,3.54019]
[1739805464548,0.98294,2825.3,2824.4,3.54056]
[1739805464750,4.54856864,2825.3,2824.3,3.54064]
[1739805464966,0.55,2825.2,2824.1,4.2550666]
[1739805465194,0.55,2824.9,2824.2,3.54071]
[1739805465406,4.08995,2824.9,2824.1,3.54091]
[1739805465707,4.08995,2824.9,2824.2,3.54081]
[1739805465865,3.54007,2824.8,2824.1,3.54092]
[1739805466069,0.55,2824.9,2824.1,3.54092]
[1739805466370,3.53967,2825.2,2824.1,3.0]
[1739805466580,3.53972,2825.1,2824.3,3.54064]
[1739805466797,3.53972,2825.1,2824.4,3.54046]
[1739805466947,4.87955,2825.4,2824.4,3.54046]
[1739805466948,3.53983,2825.0,2824.4,3.54046]
[1739805467146,0.8279,2824.8,2824.0,3.54106]
[1739805467429,1.319673,2824.8,2823.8,0.7159287]
[1739805467701,0.8279,2824.8,2824.3,3.54062]
[1739805467904,0.8279,2824.8,2824.4,3.54046]
[1739805468284,0.8279,2824.8,2824.4,3.54048]
[1739805468481,0.8279,2824.8,2824.3,3.5407]
[1739805468786,0.8279,2824.8,2823.8,3.7159287]
[1739805468995,0.8279,2824.8,2824.5,3.54042]
[1739805469497,0.8279,2824.8,2824.7,3.54019]
[1739805469652,3.0,2825.3,2824.7,3.54019]
[1739805469851,4.08947,2825.3,2824.7,3.54019]
[1739805470048,4.11560864,2825.3,2824.5,3.54042]
[1739805470253,0.79324086,2825.2,2824.5,3.54034]
[1739805470903,0.55,2825.1,2824.1,3.54089]
[1739805471250,0.55,2825.1,2824.5,3.54038]
[1739805471409,0.55,2825.1,2824.3,3.54064]
[1739805471578,3.53991,2825.0,2824.3,3.54061]
[1739805471978,4.30285,2825.0,2824.3,3.54061]
[1739805472177,4.30285,2825.0,2824.3,3.54059]
[1739805472382,0.76295,2825.0,2824.5,3.54043]
[1739805473009,0.76295,2825.0,2824.7,3.54011]
[1739805473310,0.55,2825.1,2824.6,0.03540106]
[1739805473609,0.55,2825.2,2824.6,3.5402]
[1739805473817,0.55,2825.2,2824.2,3.54073]
[1739805473818,0.55,2825.0,2824.2,3.54073]
[1739805473964,3.54004,2824.9,2824.3,3.54061]
[1739805474379,3.54004,2824.9,2824.4,3.54054]
[1739805474698,4.0899,2825.0,2824.4,7.08104]
[1739805475009,3.54007,2824.9,2823.8,3.7159287]
[1739805475319,4.08991,2825.0,2824.2,3.54074]
[1739805475610,0.55,2824.9,2824.4,3.54055]
[1739805475971,4.08998,2824.9,2824.4,3.54055]
[1739805476370,0.55,2824.9,2824.5,0.1559631]
[1739805476609,3.54023,2824.7,2824.5,0.1559631]
[1739805476977,0.55,2824.8,2824.2,3.54074]
[1739805477206,3.5402,2824.7,2824.6,0.15588964]
[1739805477712,3.54019,2824.7,2824.2,3.54074]
[1739805478014,3.54019,2824.7,2824.6,0.15591112]
[1739805478015,4.11632864,2824.7,2824.6,0.15591112]
[1739805478233,3.54033,2824.6,2824.0,3.54106]
[1739805478539,3.54033,2824.6,2824.1,3.69710848]
[1739805479078,0.55,2824.7,2824.2,3.54081]
[1739805479339,0.353989,2824.9,2824.4,3.54057]
[1739805479494,0.7806,2825.0,2824.5,3.54037]
[1739805479696,0.55,2824.9,2824.6,0.15591112]
[1739805480081,4.32043,2825.0,2824.5,3.54037]
[1739805480332,0.7806,2825.0,2824.5,3.54037]
[1739805480540,4.32043,2825.0,2824.5,3.54037]
[1739805480701,0.7806,2825.0,2824.6,3.69620112]
[1739805481027,0.55,2824.9,2824.6,0.15591112]
[1739805481237,3.54013,2824.8,2824.6,0.15591112]
[1739805481402,3.54007,2824.8,2824.3,3.54069]
[1739805481740,4.95735964,2824.8,2824.7,0.15583766]
[1739805481891,4.95735964,2824.8,2823.7,4.0502268]
[1739805481892,3.54052,2824.5,2824.4,0.15605805]
[1739805482231,3.54033,2824.6,2823.9,3.5411]
[1739805482384,3.54052,2824.5,2823.6,3.70103033]
[1739805482584,3.54021,2824.7,2824.0,0.15635196]
[1739805482785,3.5405,2824.5,2823.6,3.70103033]
[1739805483020,3.5405,2824.5,2824.1,0.15627848]
[1739805483021,3.5406,2824.4,2824.1,0.15627848]
[1739805483200,3.5405,2824.5,2823.6,4.24253033]
[1739805483201,3.54104,2824.1,2823.6,4.24253033]
[1739805483418,0.02613864,2824.3,2823.6,0.70103033]
[1739805483750,3.54065,2824.4,2823.2,0.756]
[1739805484028,0.7781,2824.5,2823.8,3.54122]
[1739805484238,0.7781,2824.5,2823.4,4.0502268]
[1739805484386,0.7781,2824.5,2824.3,3.54067]
[1739805484584,0.7854,2824.8,2824.4,3.54057]
[1739805484840,0.7854,2824.8,2824.5,3.54044]
[1739805484991,0.7854,2824.8,2824.4,3.54047]
[1739805485499,0.7854,2824.8,2823.9,0.7945]
[1739805485500,3.54019,2824.7,2823.9,0.7945]
[1739805485701,3.54041,2824.6,2824.1,3.54094]
[1739805486102,3.54041,2824.6,2824.0,3.54101]
[1739805486385,3.54051,2824.5,2824.0,3.54101]
[1739805486574,4.32553,2824.8,2824.0,3.54101]
[1739805486740,0.55,2824.7,2824.0,3.54097]
[1739805486933,3.54045,2824.5,2824.0,3.54097]
[1739805487624,3.54091,2824.2,2823.6,3.54157]
[1739805487824,0.55,2824.2,2823.4,3.54176]
[1739805488024,3.54101,2824.1,2823.5,3.54162]
[1739805488226,3.54141,2823.8,2823.2,3.54199]
[1739805488468,0.542818,2824.2,2823.0,3.54226]
[1739805488469,3.54165,2823.6,2823.0,3.54226]
[1739805488625,3.54165,2823.6,2822.8,3.54247]
[1739805488838,3.54165,2823.6,2822.9,3.54244]
[1739805488839,3.56789864,2823.5,2822.9,3.54244]
[1739805489040,0.55,2823.4,2822.6,3.54275]
[1739805489233,3.54215,2823.2,2822.5,3.54291]
[1739805489440,0.55,2823.1,2822.4,3.54299]
[1739805489639,0.55,2823.1,2822.3,4.42527788]
[1739805489906,0.55,2823.1,2822.5,3.54284]
[1739805490056,4.0922,2823.1,2822.5,3.54284]
[1739805490268,0.7887,2823.3,2822.6,3.54273]
[1739805490584,0.7887,2823.3,2822.9,3.54237]
[1739805490747,0.7887,2823.3,2822.6,0.8293236]
[1739805490942,4.22849201,2824.4,2822.6,0.8293236]
[1739805490943,0.7685,2823.7,2823.4,3.54174]
[1739805491162,4.30999,2823.7,2823.2,3.54198]
[1739805491338,4.30999,2823.7,2823.5,0.15769966]
[1739805491541,0.7685,2823.7,2823.3,3.54184]
[1739805491893,0.7685,2823.7,2823.3,3.54192]
[1739805492094,0.7685,2823.7,2823.6,3.54157]
[1739805492242,0.7685,2823.7,2822.8,4.0502268]
[1739805492243,0.7685,2823.7,2823.4,0.15777318]
[1739805492442,0.7685,2823.7,2823.6,0.15762615]
[1739805492688,4.091,2824.1,2823.5,0.15769966]
[1739805492891,0.55,2823.9,2823.6,0.15762615]
[1739805493193,3.54142,2823.8,2823.2,3.54203]
[1739805493372,4.09142,2823.8,2823.7,0.15755264]
[1739805493544,4.09142,2823.8,2823.2,3.54203]
[1739805493748,3.54202,2823.3,2822.6,3.5427]
[1739805493981,0.55,2823.4,2822.4,0.72503715]
[1739805494222,0.55,2823.4,2822.9,3.54237]
[1739805494404,4.09191,2823.4,2822.7,7.08526]
[1739805494935,3.54209,2823.2,2822.7,3.54262]
[1739805495135,3.542,2823.3,2822.6,3.54279]
[1739805495136,3.54221,2823.1,2822.6,3.54279]
[1739805495339,0.55,2823.2,2822.5,3.54286]
[1739805495498,3.54234,2823.0,2822.4,3.54302]
[1739805495683,4.34489864,2822.9,2822.3,3.54318]
[1739805495880,0.55,2822.8,2822.3,3.54318]
[1739805496190,0.55,2822.8,2822.3,3.54313]
[1739805496496,0.7762,2822.7,2821.8,0.69225829]
[1739805496698,0.55,2822.5,2822.0,3.54347]
[1739805496892,0.7762,2822.7,2821.6,4.08565987]
[1739805497130,0.7762,2822.7,2822.1,3.54344]
[1739805497336,0.55,2822.4,2821.6,3.54408]
[1739805497479,3.56942864,2822.3,2821.6,3.54408]
[1739805497699,0.55,2822.3,2821.8,3.54374]
[1739805498117,4.09323,2822.3,2821.8,3.54374]
[1739805498310,0.55,2822.1,2821.4,4.30068]
[1739805498551,0.55,2822.1,2821.6,3.54403]
[1739805498762,0.55,2822.1,2820.9,3.54485]
[1739805498763,0.7942,2821.4,2820.9,3.54485]
[1739805498920,0.7942,2821.4,2820.8,3.54501]
[1739805499123,0.7942,2821.4,2820.9,3.5449]
[1739805499451,0.7942,2821.4,2820.3,4.04021025]
[1739805499662,0.7942,2821.0,2820.1,3.54595]
[1739805499806,0.55,2820.9,2820.3,3.54571]
[1739805500007,4.09499,2820.9,2820.3,3.54571]
[1739805500430,4.09499,2820.9,2819.8,0.7212768]
[1739805500431,0.55,2820.7,2819.8,3.54632]
[1739805500631,0.7942,2821.0,2819.6,0.789]
[1739805500632,4.33909,2821.0,2820.3,3.54568]
[1739805500954,5.12752,2821.0,2820.3,3.54571]
[1739805501165,0.7942,2821.0,2820.5,3.54536]
[1739805501503,0.7942,2821.0,2820.8,3.54507]
[1739805501855,0.8193,2821.4,2821.0,3.54483]
[1739805502071,0.8193,2821.4,2820.6,3.0]
[1739805502213,0.8193,2821.9,2821.3,3.54435]
[1739805502556,0.55,2821.8,2821.3,3.54435]
[1739805502754,4.36305,2821.9,2821.3,3.54435]
[1739805502966,4.8482311,2821.9,2821.3,3.54435]
[1739805503106,1.3044811,2821.9,2820.8,3.54509]
[1739805503458,0.8193,2821.9,2821.8,3.54383]
[1739805503758,0.8193,2821.9,2821.6,3.54397]
[1739805503910,0.7709,2822.3,2821.7,3.54391]
[1739805504109,0.7709,2822.3,2821.9,3.5436]
[1739805504305,0.7709,2822.3,2821.9,3.54362]
[1739805504504,0.7709,2822.3,2821.4,7.5944868]
[1739805504505,0.7709,2822.3,2821.4,4.0502268]
[1739805504752,3.54032,2824.7,2821.4,4.0502268]
[1739805504753,0.7709,2822.8,2821.9,0.7898]
[1739805504899,0.7709,2823.5,2822.6,3.54281]
[1739805505109,3.54208,2823.2,2822.6,3.54281]
[1739805505360,3.54235,2823.0,2822.3,3.54311]
[1739805505536,3.54235,2823.0,2822.1,3.54344]
[1739805505736,4.34938,2822.9,2822.1,3.54335]
[1739805506064,4.34938,2822.9,2822.5,3.54293]
[1739805506065,0.8069,2822.9,2822.5,3.54293]
[1739805506406,0.8069,2822.9,2822.6,0.15376117]
[1739805507205,0.8069,2822.9,2822.6,3.69657117]
[1739805507438,0.8069,2822.9,2822.6,3.54281]
[1739805507625,0.8069,2822.9,2822.7,0.15368761]
[1739805507836,0.8235,2823.3,2822.8,3.54258]
[1739805508035,4.36546,2823.3,2822.8,3.54258]
[1739805508254,3.54221,2823.1,2822.9,0.1535405]
[1739805508403,5.21379186,2823.3,2822.9,0.1535405]
[1739805508604,3.54208,2823.2,2822.5,3.54292]
[1739805508842,0.55,2823.1,2822.5,3.54292]
[1739805509076,4.09224,2823.1,2822.6,0.15358038]
[1739805509260,0.55,2822.9,2822.6,0.15358038]
[1739805509459,1.48060319,2823.1,2822.6,3.69640038]
[1739805509460,0.93060319,2823.1,2822.6,3.69640038]
[1739805509648,0.8235,2823.3,2822.6,3.54276]
[1739805509843,3.56824864,2823.2,2822.6,3.54276]
[1739805510147,3.56824864,2823.2,2822.7,0.15353265]
[1739805510382,3.54211,2823.2,2822.7,0.15353265]
[1739805510575,3.54233,2823.0,2822.7,0.15353265]
[1739805510783,4.86208,2822.8,2822.7,0.15353265]
[1739805510978,7.86208,2822.8,2822.7,0.15353265]
[1739805511249,0.55,2822.4,2821.8,3.54375]
[1739805511472,4.09311,2822.4,2821.8,3.54374]
[1739805511799,4.502421,2822.4,2821.9,0.15412557]
[1739805511997,3.952421,2822.4,2821.8,3.54372]
[1739805512297,0.55,2822.3,2822.0,0.15405198]
[1739805512446,0.55,2822.3,2821.9,0.15412557]
[1739805512647,0.55,2822.3,2822.1,0.15397839]
[1739805512856,4.09324,2822.3,2822.0,0.15405198]
[1739805513112,4.09324,2822.3,2822.2,0.1539048]
[1739805513249,0.55,2822.3,2822.1,0.15397839]
[1739805513450,0.55,2822.3,2822.2,0.1539048]
[1739805513652,5.35574964,2822.3,2822.2,0.1539048]
[1739805513869,0.55,2822.0,2821.5,3.54419]
[1739805514156,0.55,2822.1,2821.6,0.1543464]
[1739805514357,0.55,2822.1,2821.7,3.54395]
[1739805514801,0.55,2822.1,2821.8,0.15419918]
[1739805514802,3.54347,2822.1,2821.8,0.15419918]
[1739805515149,3.54347,2822.1,2821.6,3.544]
[1739805515358,3.54347,2822.1,2821.9,0.15412557]
[1739805515556,3.54347,2822.1,2821.6,3.544]
[1739805515797,4.92039,2822.3,2821.1,3.0]
[1739805515798,0.354347,2822.0,2821.1,3.54462]
[1739805516104,3.54393,2821.8,2821.2,3.54451]
[1739805516310,3.54371,2821.9,2821.3,3.54439]
[1739805516598,3.54388,2821.8,2821.0,4.30434]
[1739805516797,4.35539,2821.6,2821.0,3.54474]
[1739805517155,0.55,2821.5,2820.9,3.54496]
[1739805517397,0.55,2821.3,2820.9,3.54496]
[1739805517566,0.55,2821.3,2820.7,3.54513]
[1739805517893,0.7904,2821.2,2820.3,1.57870116]
[1739805518098,4.335,2821.2,2820.5,3.54545]
[1739805518259,0.55,2820.9,2820.5,3.54545]
[1739805518856,4.09504,2820.9,2820.3,3.54566]
[1739805519159,3.54522,2820.7,2820.2,3.54581]
[1739805519359,0.02613864,2820.6,2820.1,3.54586]
[1739805519559,4.12154864,2820.6,2820.1,3.54586]
[1739805519800,4.12154864,2820.6,2819.6,4.31545]
[1739805519801,4.09559,2820.4,2819.7,4.258313]
[1739805520102,4.09579,2820.3,2819.7,3.5464]
[1739805520508,4.09589,2820.2,2819.3,3.54697]
[1739805520677,0.55,2820.0,2819.5,3.54671]
[1739805521211,0.95284168,2820.2,2819.5,3.54671]
[1739805521212,0.95284168,2820.2,2819.7,3.54644]
[1739805521372,0.8323,2820.3,2820.1,3.54596]
[1739805521583,0.8323,2820.7,2820.4,3.5455]
[1739805521786,0.8323,2820.7,2820.2,7.09156]
[1739805521973,0.8323,2820.7,2820.5,0.15613436]
[1739805522185,0.8323,2820.7,2820.2,3.54575]
[1739805522359,1.3823,2820.7,2820.6,0.15605638]
[1739805522562,1.3823,2820.7,2820.0,3.54602]
[1739805522877,0.55,2820.6,2820.0,3.54602]
[1739805523090,4.09541,2820.6,2820.0,3.54602]
[1739805523410,0.55,2820.2,2819.6,3.54651]
[1739805523617,0.55,2820.2,2819.6,3.54649]
[1739805523765,0.55,2820.6,2819.8,3.54633]
[1739805523966,4.14358648,2820.5,2819.8,3.54624]
[1739805524166,0.55,2820.3,2819.8,3.54624]
[1739805524366,0.59802648,2820.5,2819.3,3.54697]
[1739805524564,0.8323,2820.7,2820.3,3.54571]
[1739805524767,0.8323,2820.7,2820.4,3.54558]
[1739805524998,0.8323,2820.7,2820.2,3.54574]
[1739805525196,0.8323,2820.7,2820.3,3.54569]
[1739805525563,0.8323,2820.7,2820.1,3.5459]
[1739805525782,1.624545,2820.7,2819.2,0.7593]
[1739805526081,1.624545,2820.7,2820.3,3.54564]
[1739805526516,0.8296,2821.2,2820.4,0.03545572]
[1739805526666,0.8296,2821.2,2820.8,3.54502]
[1739805526866,0.8296,2821.2,2820.8,3.545]
[1739805527075,0.8296,2821.2,2820.6,3.54526]
[1739805527076,4.37427,2821.2,2820.6,3.54526]
[1739805527303,0.8296,2821.2,2820.8,3.54504]
[1739805527474,0.8296,2821.2,2820.4,3.54557]
[1739805527475,4.12086864,2821.1,2820.4,3.54557]
[1739805527697,4.09473,2821.1,2820.4,3.54557]
[1739805527900,0.55,2820.8,2820.4,3.54557]
[1739805528098,0.55,2820.9,2820.4,3.54557]
[1739805528402,0.55,2820.9,2820.5,0.15601365]
[1739805528603,0.55,2821.1,2820.7,3.54513]
[1739805528937,0.55,2821.1,2820.8,0.15579266]
[1739805528938,0.98796,2821.1,2820.8,0.15579266]
[1739805529227,0.98796,2821.1,2820.7,3.54521]
[1739805529532,0.55,2821.1,2820.9,0.155719]
[1739805529692,0.55,2821.1,2821.0,0.15564536]
[1739805529889,0.8296,2821.2,2821.0,3.54474]
[1739805530228,4.35587,2821.7,2821.1,3.70028171]
[1739805530430,0.02613864,2821.6,2821.1,0.15557171]
[1739805530598,0.8119,2821.7,2820.3,3.72327143]
[1739805530799,0.8119,2821.7,2820.6,0.813]
[1739805531192,0.8119,2821.7,2821.4,3.54429]
[1739805531593,0.7564,2822.1,2821.5,3.69965398]
[1739805531793,4.29992,2822.1,2821.5,3.69965398]
[1739805532028,0.963992,2822.0,2821.5,0.15551398]
[1739805532338,0.55,2821.6,2820.9,3.54488]
[1739805532540,4.09428,2821.5,2821.0,3.54482]
[1739805532849,4.09424,2821.5,2821.0,3.54479]
[1739805533326,4.09424,2821.5,2820.7,3.54513]
[1739805533532,0.02613864,2821.4,2820.7,3.54513]
[1739805533724,3.54455,2821.3,2820.7,3.54513]
[1739805534226,3.54463,2821.2,2820.7,3.54513]
[1739805534390,4.09475,2821.1,2820.5,7.09079]
[1739805534596,4.09475,2821.1,2820.6,3.54527]
[1739805534795,4.775365,2821.0,2820.5,3.54539]
[1739805535008,4.775365,2821.0,2820.5,3.54544]
[1739805535837,0.55,2820.8,2820.3,3.5457]
[1739805536136,0.55,2820.8,2820.4,3.54553]
[1739805536343,0.55,2820.8,2820.4,0.15637152]
[1739805536552,3.954725,2820.7,2820.2,3.54577]